bitfinex/quotes_SOLUSD_20260102
["timestamp","ask_amount","ask_price","bid_price","bid_amount"]
[1767368868620,0.1,129.43,129.37,0.71531354]
[1767368868829,5.76331012,129.4,129.37,0.71531354]
[1767368869031,5.76331012,129.38,129.32,0.71531354]
[1767368869215,5.76331012,129.36,129.32,0.71531354]
[1767368869418,0.71106125,129.39,129.33,0.71531354]
[1767368869633,7.72824367,129.4,129.32,7.73238593]
[1767368869634,5.76331012,129.36,129.32,7.73238593]
[1767368869836,6.47437137,129.37,129.32,27.06427581]
[1767368870037,6.47437137,129.37,129.32,27.77958935]
[1767368870250,5.76331012,129.37,129.33,0.71531354]
[1767368870846,5.76331012,129.37,129.32,32.82758593]
[1767368871141,5.76331012,129.37,129.33,8.44698472]
[1767368871850,5.76331012,129.36,129.33,7.73167118]
[1767368872025,5.76331012,129.35,129.33,7.73167118]
[1767368872226,5.76331012,129.36,129.33,7.73167118]
[1767368872526,0.71106125,129.4,129.34,0.71531354]
[1767368872721,10.9472746,129.39,129.34,0.71531354]
[1767368873029,5.76331012,129.39,129.34,0.71531354]
[1767368873624,5.76331012,129.39,129.35,7.7309625]
[1767368873832,5.76331012,129.4,129.35,7.7309625]
[1767368874031,5.18282793,129.39,129.36,0.71531354]
[1767368874237,0.71106125,129.4,129.35,13.49427262]
[1767368874419,5.76331012,129.4,129.35,13.49427262]
[1767368874618,5.76331012,129.4,129.35,14.20958616]
[1767368874834,5.76331012,129.4,129.36,0.71531354]
[1767368875139,5.76331012,129.41,129.36,0.71531354]
[1767368875331,6.47437137,129.4,129.35,27.7736823]
[1767368875532,5.76331012,129.4,129.37,7.72976733]
[1767368875841,5.76331012,129.4,129.37,8.44508087]
[1767368876046,5.76331012,129.4,129.37,7.72976733]
[1767368876423,5.76331012,129.41,129.37,7.72976733]
[1767368876636,5.76331012,129.41,129.37,8.39606538]
[1767368877128,5.76331012,129.41,129.38,0.66629805]
[1767368877946,5.76331012,129.41,129.38,8.39505445]
[1767368878128,5.76331012,129.42,129.39,0.66629805]
[1767368878822,5.86331012,129.43,129.39,0.66629805]
[1767368879222,5.76331012,129.42,129.39,0.66629805]
[1767368879447,0.6971071,129.41,129.38,27.05168111]
[1767368879626,5.76331012,129.42,129.38,27.05168111]
[1767368879825,6.56041722,129.43,129.38,27.05168111]
[1767368880222,5.76331012,129.42,129.39,0.66629805]
[1767368880540,9.34985764,129.42,129.39,0.66629805]
[1767368880856,0.1,129.43,129.39,0.66629805]
[1767368881639,0.1,129.43,129.4,7.72797527]
[1767368882425,10.04696474,129.47,129.41,10.01615569]
[1767368882623,0.1,129.48,129.42,0.66629805]
[1767368882825,0.1,129.48,129.44,0.66629805]
[1767368883136,0.1,129.48,129.45,0.66629805]
[1767368883729,0.1,129.48,129.46,0.66629805]
[1767368884050,0.1,129.48,129.44,8.39167199]
[1767368884249,0.6971071,129.44,129.39,8.39476823]
[1767368884428,3.35402993,129.43,129.41,0.66629805]
[1767368884634,9.34824506,129.44,129.41,0.66629805]
[1767368885143,9.34824506,129.43,129.4,0.66629805]
[1767368885445,0.6971071,129.43,129.39,31.1767762]
[1767368885625,0.6971071,129.43,129.39,21.82853114]
[1767368885822,9.34824506,129.45,129.4,0.66629805]
[1767368886035,0.6971071,129.46,129.4,24.34824506]
[1767368886345,0.7971071,129.48,129.41,0.66629805]
[1767368886528,9.34824506,129.45,129.39,41.81626052]
[1767368886734,9.34824506,129.44,129.39,41.81626052]
[1767368886930,9.34824506,129.43,129.4,0.66629805]
[1767368887456,10.04535216,129.43,129.39,21.82853114]
[1767368887651,9.34824506,129.43,129.39,14.76629805]
[1767368887830,9.34824506,129.43,129.39,0.66629805]
[1767368888238,9.34824506,129.43,129.39,8.39467199]
[1767368888437,9.34824506,129.43,129.39,0.66629805]
[1767368888633,9.34824506,129.42,129.38,8.39527757]
[1767368888846,9.34824506,129.41,129.38,0.66629805]
[1767368889031,9.34824506,129.39,129.35,0.66629805]
[1767368889236,1.32978192,129.37,129.32,0.66629805]
[1767368889548,9.34824506,129.37,129.33,0.66629805]
[1767368889753,9.34824506,129.37,129.34,7.73124817]
[1767368889955,9.34824506,129.4,129.35,9.34824506]
[1767368890250,9.34824506,129.41,129.36,0.66629805]
[1767368890448,9.34824506,129.4,129.36,0.66629805]
[1767368890648,9.34824506,129.41,129.36,0.66629805]
[1767368890954,0.6971071,129.47,129.39,0.66629805]
[1767368891253,7.82342621,129.48,129.37,0.66629805]
[1767368891254,9.34824506,129.41,129.37,0.66629805]
[1767368892050,9.34824506,129.41,129.37,8.39599003]
[1767368892236,9.34824506,129.41,129.37,7.72969198]
[1767368892440,0.6971071,129.4,129.37,7.72969198]
[1767368892632,9.34824506,129.4,129.37,8.39599003]
[1767368893254,0.6971071,129.47,129.39,9.34824506]
[1767368893439,9.34824506,129.44,129.4,0.66629805]
[1767368893639,9.34824506,129.43,129.38,23.44824506]
[1767368893957,0.6971071,129.41,129.38,21.82860964]
[1767368894333,9.34824506,129.43,129.38,50.49977941]
[1767368894536,10.04535216,129.43,129.38,50.49977941]
[1767368894755,0.1,129.48,129.39,10.01454311]
[1767368894959,9.34824506,129.45,129.4,0.66629805]
[1767368895261,9.34824506,129.45,129.41,0.66629805]
[1767368895457,0.6971071,129.44,129.4,9.34824506]
[1767368895834,9.34824506,129.45,129.41,0.66629805]
[1767368896034,9.34824506,129.44,129.41,0.66629805]
[1767368896254,9.34824506,129.44,129.41,7.72695583]
[1767368897062,9.34824506,129.44,129.4,8.39414578]
[1767368897444,9.34824506,129.43,129.39,7.72830457]
[1767368897649,9.34824506,129.42,129.39,7.72830457]
[1767368898163,9.34824506,129.43,129.39,7.72830457]
[1767368898332,10.04535216,129.43,129.39,7.72830457]
[1767368898533,0.6971071,129.42,129.39,7.72830457]
[1767368898760,0.6971071,129.42,129.38,9.34824506]
[1767368898964,184.70800123,129.48,129.38,7.7289075]
[1767368898965,9.34824506,129.41,129.38,7.7289075]
[1767368899130,9.34824506,129.42,129.38,8.39520555]
[1767368899329,0.6971071,129.41,129.38,7.7289075]
[1767368899751,0.6971071,129.41,129.37,23.44824506]
[1767368899752,0.6971071,129.41,129.37,14.1]
[1767368899953,0.6971071,129.39,129.36,7.72994239]
[1767368900153,9.34824506,129.38,129.35,7.73075976]
[1767368900971,9.34824506,129.39,129.35,7.73075976]
[1767368901178,0.6971071,129.43,129.36,9.34824506]
[1767368901336,9.34824506,129.41,129.37,0.66629805]
[1767368901865,0.6971071,129.43,129.37,0.66629805]
[1767368902070,9.34824506,129.41,129.37,8.39554848]
[1767368903553,9.34824506,129.41,129.37,7.72925043]
[1767368903884,0.6971071,129.43,129.37,7.72925043]
[1767368904087,9.34824506,129.42,129.37,7.72925043]
[1767368904238,9.34824506,129.42,129.37,37.06821187]
[1767368904442,9.34824506,129.42,129.37,51.16821187]
[1767368904756,0.6971071,129.4,129.37,21.82925043]
[1767368904954,0.6971071,129.39,129.37,21.82925043]
[1767368905148,0.6971071,129.39,129.37,7.72925043]
[1767368905456,9.34824506,129.41,129.37,7.72925043]
[1767368905860,0.6971071,129.38,129.35,14.1]
[1767368906056,0.6971071,129.38,129.34,19.32804728]
[1767368906266,0.6971071,129.38,129.36,7.73031224]
[1767368906764,0.67029224,129.39,129.36,7.73031224]
[1767368907264,9.34824506,129.39,129.36,8.44958271]
[1767368907491,9.34824506,129.39,129.36,7.73031224]
[1767368907767,9.34824506,129.39,129.35,27.77700238]
[1767368908170,9.34824506,129.38,129.35,7.7309625]
[1767368909068,10.0185373,129.39,129.35,7.7309625]
[1767368909367,8.35013837,129.5,129.35,7.7309625]
[1767368909368,9.34824506,129.41,129.36,9.34824506]
[1767368909568,9.34824506,129.41,129.38,7.72916988]
[1767368909786,0.67029224,129.42,129.38,7.72916988]
[1767368909946,10.0185373,129.42,129.38,7.72916988]
[1767368911070,9.34824506,129.41,129.38,7.72916988]
[1767368911455,0.67029224,129.46,129.4,10.06751553]
[1767368911774,9.34824506,129.45,129.41,7.7273781]
[1767368911957,10.0185373,129.45,129.41,7.7273781]
[1767368912149,0.67029224,129.45,129.41,7.7273781]
[1767368912350,0.67029224,129.44,129.41,7.7273781]
[1767368912969,7.82345161,129.48,129.42,9.34824506]
[1767368912970,0.67029224,129.47,129.42,9.34824506]
[1767368913161,10.0185373,129.46,129.41,7.7273781]
[1767368913347,9.34824506,129.45,129.41,21.8273781]
[1767368913878,0.1,129.48,129.4,7.72792457]
[1767368913879,10.0185373,129.44,129.4,7.72792457]
[1767368914173,0.67029224,129.44,129.4,7.72792457]
[1767368914367,7.72400337,129.47,129.4,7.72792457]
[1767368914368,0.67029224,129.42,129.4,7.72792457]
[1767368914574,9.9885373,129.42,129.4,7.72792457]
[1767368914768,9.34824506,129.43,129.4,7.72792457]
[1767368915578,9.34824506,129.42,129.4,7.72792457]
[1767368915871,9.34824506,129.41,129.39,21.82840367]
[1767368916562,8.59324506,129.41,129.39,21.85840367]
[1767368916754,0.67029224,129.44,129.39,21.85840367]
[1767368916954,9.34824506,129.41,129.39,21.85840367]
[1767368917179,9.34824506,129.42,129.39,21.82840367]
[1767368917379,9.34824506,129.44,129.4,15.0]
[1767368917588,9.34824506,129.44,129.41,0.67029224]
[1767368917884,9.34824506,129.46,129.42,7.72678102]
[1767368918086,9.34824506,129.46,129.42,42.04373357]
[1767368918372,9.34824506,129.46,129.43,14.77029224]
[1767368919581,0.77029224,129.48,129.43,14.1]
[1767368919753,4.03240173,129.54,129.47,7.72379701]
[1767368919953,9.34824506,129.49,129.47,7.72379701]
[1767368920178,9.34824506,129.48,129.43,14.81927047]
[1767368920359,9.34824506,129.46,129.44,0.71927047]
[1767368920566,9.34824506,129.47,129.44,0.71927047]
[1767368920782,14.1,129.53,129.46,7.72439363]
[1767368920961,9.34824506,129.48,129.46,7.72439363]
[1767368921277,9.34824506,129.47,129.45,7.72471717]
[1767368921487,14.1,129.53,129.43,33.41463461]
[1767368921488,9.34824506,129.48,129.46,7.72439363]
[1767368921650,9.34824506,129.48,129.45,7.72476979]
[1767368921856,0.67029224,129.5,129.44,7.72558714]
[1767368922377,9.34824506,129.47,129.44,7.72558714]
[1767368922593,0.67029224,129.5,129.44,32.0738322]
[1767368922893,9.34824506,129.48,129.44,51.38780006]
[1767368923505,9.34824506,129.48,129.44,42.039555]
[1767368923506,10.0185373,129.48,129.44,42.039555]
[1767368923663,165.3,129.54,129.44,51.38780006]
[1767368923862,9.34824506,129.49,129.44,52.0580923]
[1767368924178,179.5,129.56,129.44,52.0580923]
[1767368924355,9.34824506,129.5,129.46,15.0]
[1767368924554,9.34824506,129.48,129.44,42.039555]
[1767368924859,9.34824506,129.47,129.46,7.72916646]
[1767368925076,179.4,129.54,129.46,7.72916646]
[1767368925284,9.34824506,129.48,129.45,0.67029224]
[1767368925501,9.34824506,129.51,129.44,21.82558714]
[1767368925789,10.0185373,129.47,129.44,21.82558714]
[1767368926171,0.67029224,129.54,129.44,37.49587938]
[1767368926378,9.34824506,129.48,129.44,22.49587938]
[1767368926580,10.0185373,129.48,129.44,41.139555]
[1767368927179,0.67029224,129.48,129.44,41.139555]
[1767368927380,9.34824506,129.47,129.44,21.82558714]
[1767368927893,9.34824506,129.45,129.42,15.0]
[1767368928091,0.67029224,129.46,129.41,21.82710606]
[1767368928392,41.12977288,129.49,129.39,7.72813586]
[1767368928559,0.67029224,129.51,129.44,24.34824506]
[1767368928756,9.34824506,129.5,129.45,23.44824506]
[1767368928963,0.67029224,129.45,129.41,7.72709843]
[1767368929160,9.34824506,129.43,129.41,7.72715394]
[1767368929782,9.34824506,129.44,129.41,7.72715394]
[1767368930197,9.34824506,129.43,129.4,21.82771364]
[1767368930491,9.34824506,129.43,129.4,7.72771364]
[1767368930874,9.34824506,129.43,129.39,7.72843068]
[1767368930875,9.34824506,129.42,129.39,7.72843068]
[1767368931079,0.67029224,129.4,129.39,7.72843068]
[1767368931384,7.72406501,129.47,129.39,7.72843068]
[1767368931587,9.34824506,129.42,129.39,7.72843068]
[1767368932069,19.30906872,129.48,129.39,7.72843068]
[1767368932070,9.34824506,129.41,129.39,7.72843068]
[1767368932278,9.34824506,129.4,129.36,0.67029224]
[1767368932471,5.51529,129.5,129.37,7.72967858]
[1767368932472,9.34824506,129.39,129.37,7.72967858]
[1767368932986,9.34824506,129.4,129.37,7.72967858]
[1767368933184,10.0185373,129.4,129.37,7.72967858]
[1767368933383,0.67029224,129.42,129.37,8.39997082]
[1767368933689,9.34824506,129.39,129.36,0.67029224]
[1767368933868,9.34824506,129.41,129.37,0.67029224]
[1767368934064,9.34824506,129.4,129.37,8.39985307]
[1767368934673,0.67029224,129.39,129.37,7.72956083]
[1767368935388,0.67029224,129.39,129.36,7.73011333]
[1767368935789,9.34824506,129.41,129.36,17.74865063]
[1767368935992,9.34824506,129.41,129.37,8.40002592]
[1767368936192,0.67029224,129.42,129.37,8.40003229]
[1767368936497,9.34824506,129.38,129.34,17.74974009]
[1767368936668,0.66697365,129.39,129.34,10.0185373]
[1767368936669,10.01521871,129.39,129.34,10.0185373]
[1767368937064,9.34824506,129.42,129.31,30.0]
[1767368937284,10.01521871,129.34,129.29,10.0185373]
[1767368937598,9.34824506,129.35,129.3,10.0185373]
[1767368937796,14.1,129.39,129.28,33.43746941]
[1767368937797,0.66697365,129.38,129.29,7.73417742]
[1767368938089,10.01521871,129.33,129.28,17.75329013]
[1767368938972,0.66697365,129.33,129.28,17.75329013]
[1767368939288,0.66697365,129.39,129.32,9.34824506]
[1767368939492,0.66697365,129.37,129.32,9.34824506]
[1767368939692,9.34824506,129.36,129.31,0.67029224]
[1767368940001,0.66697365,129.35,129.3,24.1185373]
[1767368940203,10.01521871,129.35,129.3,31.85212854]
[1767368940496,0.66697365,129.37,129.31,10.0185373]
[1767368940696,10.01521871,129.37,129.33,9.34824506]
[1767368940908,9.34824506,129.35,129.3,37.08700866]
[1767368941073,9.34824506,129.34,129.3,8.40388348]
[1767368941292,0.66697365,129.39,129.32,9.34824506]
[1767368941481,9.34824506,129.36,129.32,9.34824506]
[1767368941680,9.34824506,129.36,129.31,10.0185373]
[1767368941896,9.34824506,129.35,129.31,0.67029224]
[1767368942105,7.72797527,129.4,129.32,9.34824506]
[1767368942294,9.34824506,129.37,129.33,7.73215804]
[1767368942494,5.75823248,129.37,129.33,7.73215804]
[1767368942690,6.42520613,129.38,129.33,14.16068276]
[1767368943004,0.66697365,129.37,129.32,7.73267393]
[1767368943408,5.75823248,129.36,129.32,7.73267393]
[1767368943586,5.75823248,129.34,129.31,7.73308982]
[1767368943787,5.75823248,129.34,129.3,7.73374142]
[1767368943788,5.75823248,129.33,129.3,7.73374142]
[1767368943988,0.66697365,129.34,129.29,8.40468895]
[1767368944202,5.75823248,129.36,129.31,6.42852472]
[1767368944505,6.42520613,129.36,129.32,7.73253393]
[1767368944989,0.66697365,129.36,129.32,13.49076641]
[1767368945310,6.42520613,129.38,129.33,6.42852472]
[1767368945805,0.66697365,129.33,129.28,0.67029224]
[1767368945989,6.42520613,129.3,129.27,0.2]
[1767368946196,6.42520613,129.28,129.23,5.95823248]
[1767368946504,6.42520613,129.28,129.24,7.73754255]
[1767368946682,6.42520613,129.28,129.23,0.90994434]
[1767368946889,5.75823248,129.26,129.23,0.2]
[1767368947084,0.66697365,129.31,129.24,5.75823248]
[1767368947290,7.73275595,129.32,129.24,6.46817682]
[1767368947291,5.75823248,129.28,129.24,6.46817682]
[1767368947705,6.42520613,129.29,129.24,6.46817682]
[1767368948205,5.75823248,129.28,129.24,0.70994434]
[1767368948407,5.75823248,129.28,129.24,7.73721803]
[1767368948586,6.42520613,129.26,129.23,0.2]
[1767368948783,0.66697365,129.26,129.23,0.2]
[1767368948987,5.75823248,129.28,129.23,14.40628419]
[1767368949195,6.42520613,129.27,129.23,0.2]
[1767368949401,14.1,129.31,129.23,0.2]
[1767368949402,5.75823248,129.33,129.24,7.7374427]
[1767368949610,5.75823248,129.28,129.24,7.7374427]
[1767368949795,6.42520613,129.26,129.23,0.2]
[1767368950187,6.42520613,129.24,129.2,57.24168952]
[1767368950387,5.75823248,129.23,129.2,23.11303039]
[1767368950801,6.42520613,129.24,129.2,23.11303039]
[1767368951201,5.75823248,129.23,129.2,23.11303039]
[1767368951400,0.66697365,129.24,129.2,30.8529146]
[1767368951601,5.75823248,129.23,129.2,30.8529146]
[1767368951808,0.66697365,129.24,129.2,23.11303039]
[1767368952003,5.75823248,129.23,129.2,23.11303039]
[1767368952706,5.75823248,129.21,129.2,21.28332263]
[1767368952892,7.73634535,129.26,129.2,21.28332263]
[1767368952893,21.85634535,129.26,129.2,21.28332263]
[1767368953093,5.75823248,129.23,129.2,21.28332263]
[1767368953404,5.75823248,129.21,129.2,21.28332263]
[1767368953609,21.85634535,129.26,129.2,21.99326697]
[1767368953907,21.85634535,129.26,129.2,21.28332263]
[1767368954104,7.73634535,129.26,129.2,21.28332263]
[1767368954299,5.75823248,129.23,129.2,21.28332263]
[1767368954613,5.75823248,129.21,129.17,0.70994434]
[1767368954807,5.75823248,129.19,129.17,0.70994434]
[1767368955110,5.75823248,129.19,129.16,0.2]
[1767368955913,14.12,129.23,129.16,0.2]
[1767368956117,5.75823248,129.18,129.16,0.2]
[1767368956296,14.12,129.23,129.16,0.2]
[1767368956499,5.75823248,129.19,129.16,0.2]
[1767368957108,44.42033627,129.33,129.17,0.70994434]
[1767368957421,5.51529,129.29,129.18,0.70994434]
[1767368957915,5.75823248,129.23,129.18,6.46817682]
[1767368958118,32.57993583,129.32,129.21,0.70994434]
[1767368958311,5.75823248,129.25,129.21,0.70994434]
[1767368958620,5.75823248,129.23,129.19,8.45024532]
[1767368959120,5.75823248,129.24,129.21,0.70994434]
[1767368959595,21.85514851,129.28,129.21,13.49751125]
[1767368959596,14.12,129.28,129.21,13.49751125]
[1767368959919,5.75823248,129.25,129.22,0.70994434]
[1767368960214,14.12,129.28,129.22,0.70994434]
[1767368960416,5.75823248,129.25,129.21,7.73927877]
[1767368960613,5.75823248,129.25,129.21,0.70994434]
[1767368961124,5.75823248,129.24,129.21,0.70994434]
[1767368961500,5.75823248,129.28,129.23,5.75823248]
[1767368961731,5.75823248,129.29,129.24,5.75823248]
[1767368961941,5.75823248,129.3,129.26,0.70994434]
[1767368962226,5.75823248,129.31,129.27,0.70994434]
[1767368962397,21.85156022,129.34,129.27,0.70994434]
[1767368962398,5.75823248,129.32,129.27,0.70994434]
[1767368962598,5.75823248,129.32,129.28,0.70994434]
[1767368962814,5.75823248,129.31,129.26,6.46817682]
[1767368963022,5.75823248,129.31,129.26,0.70994434]
[1767368963212,5.75823248,129.31,129.26,5.75823248]
[1767368963414,5.75823248,129.31,129.27,0.70994434]
[1767368963624,21.85165365,129.34,129.27,0.70994434]
[1767368963808,5.75823248,129.31,129.27,0.70994434]
[1767368964127,5.75823248,129.3,129.27,0.70994434]
[1767368964343,5.75823248,129.28,129.25,0.70994434]
[1767368964698,5.75823248,129.29,129.25,0.70994434]
[1767368964903,5.75823248,129.28,129.25,0.70994434]
[1767368965314,14.12,129.31,129.25,0.70994434]
[1767368965315,5.75823248,129.29,129.25,0.70994434]
[1767368965932,5.75823248,129.28,129.25,0.70994434]
[1767368966423,19.87823248,129.31,129.26,0.69593663]
[1767368967016,5.75823248,129.3,129.26,0.69593663]
[1767368967214,5.75823248,129.29,129.26,0.69593663]
[1767368967611,5.75823248,129.29,129.24,8.42573567]
[1767368967807,5.75823248,129.29,129.24,7.73728118]
[1767368968130,5.75823248,129.28,129.25,0.68845449]
[1767368968331,5.75823248,129.28,129.23,7.73787473]
[1767368968531,14.12,129.31,129.26,0.68845449]
[1767368968720,5.75823248,129.3,129.26,0.68845449]
[1767368969030,19.87823248,129.31,129.26,0.68845449]
[1767368969232,19.87823248,129.31,129.27,0.68845449]
[1767368969612,5.75823248,129.3,129.27,0.68845449]
[1767368970032,19.87823248,129.31,129.27,0.68845449]
[1767368970222,5.75823248,129.3,129.27,0.68845449]
[1767368971710,5.75823248,129.31,129.28,0.68845449]
[1767368971931,14.12,129.34,129.24,44.12]
[1767368971932,5.75823248,129.3,129.26,8.42452518]
[1767368972122,5.75823248,129.3,129.27,0.68845449]
[1767368973634,5.75823248,129.28,129.24,14.80845449]
[1767368973847,5.75823248,129.3,129.25,0.68845449]
[1767368974011,8.35013837,129.36,129.28,0.68845449]
[1767368974210,5.75823248,129.32,129.28,0.68845449]
[1767368974941,7.72857253,129.39,129.3,0.68845449]
[1767368975112,5.75823248,129.35,129.3,0.68845449]
[1767368975314,5.75823248,129.33,129.3,0.68845449]
[1767368976436,5.75823248,129.33,129.3,8.42227418]
[1767368977828,5.75823248,129.33,129.31,0.68845449]
[1767368978531,5.75823248,129.34,129.31,0.68845449]
[1767368979254,14.12,129.36,129.32,0.68845449]
[1767368979255,19.87823248,129.36,129.32,0.68845449]
[1767368979417,5.75823248,129.35,129.32,0.68845449]
[1767368980239,5.75823248,129.33,129.32,0.68845449]
[1767368980544,5.75823248,129.33,129.29,8.42256295]
[1767368980720,21.85049021,129.36,129.3,0.68845449]
[1767368981037,5.75823248,129.31,129.3,0.68845449]
[1767368981229,0.71744148,129.35,129.3,0.68845449]
[1767368981431,5.75823248,129.31,129.3,0.68845449]
[1767368981638,5.75823248,129.32,129.3,0.68845449]
[1767368981938,14.12,129.36,129.31,0.68845449]
[1767368982111,5.75823248,129.34,129.31,0.68845449]
[1767368982313,5.75823248,129.33,129.31,8.42178327]
[1767368982941,5.75823248,129.35,129.32,0.68845449]
[1767368983326,5.75823248,129.36,129.32,0.68845449]
[1767368983522,14.83744148,129.39,129.32,0.68845449]
[1767368983822,0.71744148,129.38,129.32,0.68845449]
[1767368984034,5.75823248,129.38,129.33,15.0]
[1767368984223,5.75823248,129.38,129.35,7.7309625]
[1767368984415,5.75823248,129.37,129.35,0.68845449]
[1767368985120,5.75823248,129.36,129.33,0.68845449]
[1767368985327,5.75823248,129.34,129.31,0.68845449]
[1767368985511,5.75823248,129.34,129.31,8.42162108]
[1767368985711,5.75823248,129.34,129.32,0.68845449]
[1767368986538,19.87823248,129.42,129.31,7.73316659]
[1767368986539,2.15103932,129.33,129.31,7.73316659]
[1767368986838,2.15103932,129.33,129.31,0.68845449]
[1767368987210,2.15103932,129.33,129.31,8.42172264]
[1767368987640,2.15103932,129.33,129.31,0.68845449]
[1767368987829,0.71744148,129.36,129.31,8.42143534]
[1767368988035,2.15103932,129.34,129.31,8.42143534]
[1767368988217,2.15103932,129.32,129.3,7.73373299]
[1767368988538,5.76220748,129.32,129.3,7.73373299]
[1767368988838,0.71744148,129.34,129.3,8.42218748]
[1767368989052,5.76220748,129.33,129.3,8.42218748]
[1767368989732,5.76220748,129.32,129.3,8.42218748]
[1767368989936,0.71744148,129.36,129.3,0.68845449]
[1767368990118,5.76220748,129.31,129.28,0.68845449]
[1767368990319,5.76220748,129.31,129.29,0.68845449]
[1767368990934,5.76220748,129.32,129.29,0.68845449]
[1767368991243,5.76220748,129.32,129.29,8.42300204]
[1767368991740,5.76220748,129.34,129.3,0.68845449]
[1767368991944,5.76220748,129.35,129.31,0.68845449]
[1767368992123,5.76220748,129.34,129.31,0.68845449]
[1767368992958,5.76220748,129.34,129.31,8.42126289]
[1767368994026,5.76220748,129.35,129.32,0.68845449]
[1767368995139,0.71744148,129.36,129.32,8.42120472]
[1767368995338,5.76220748,129.35,129.32,8.42120472]
[1767368995750,0.71744148,129.36,129.32,8.42120472]
[1767368995969,0.71744148,129.4,129.33,0.68845449]
[1767368996258,6.47964896,129.4,129.35,0.65905561]
[1767368997952,6.47964896,129.4,129.35,8.38979683]
[1767368998141,5.76220748,129.38,129.35,8.38979683]
[1767368998331,6.45706389,129.39,129.35,8.38979683]
[1767368999858,0.69485641,129.39,129.35,8.38979683]
[1767369000029,6.45706389,129.41,129.36,0.65905561]
[1767369000228,27.66143485,129.46,129.37,0.65905561]
[1767369000229,0.69485641,129.45,129.37,0.65905561]
[1767369000535,5.76220748,129.41,129.35,27.05814748]
[1767369000735,0.69485641,129.38,129.35,21.85074122]
[1767369000924,5.76220748,129.38,129.35,21.85074122]
[1767369001128,5.76220748,129.38,129.35,22.50979683]
[1767369001325,5.76220748,129.38,129.35,8.38979683]
[1767369001530,5.76220748,129.36,129.32,14.77905561]
[1767369002031,6.45706389,129.36,129.32,0.65905561]
[1767369002558,9.36103135,129.34,129.3,0.65905561]
[1767369002752,9.36103135,129.33,129.3,0.65905561]
[1767369002929,10.05588776,129.34,129.3,8.39298378]
[1767369003129,9.36103135,129.35,129.3,9.36103135]
[1767369003331,10.05588776,129.36,129.32,0.65905561]
[1767369003550,9.36103135,129.34,129.29,19.99451621]
[1767369003748,0.69485641,129.37,129.31,8.3920117]
[1767369003941,10.05588776,129.35,129.31,8.3920117]
[1767369004126,9.36103135,129.34,129.3,8.39271804]
[1767369004553,10.05588776,129.35,129.31,8.39232312]
[1767369004737,10.05588776,129.34,129.29,31.87441881]
[1767369005051,10.05588776,129.32,129.28,7.73495094]
[1767369005241,10.05588776,129.32,129.28,17.09598229]
[1767369005442,10.05588776,129.31,129.27,0.65905561]
[1767369005636,0.69485641,129.29,129.26,7.73606659]
[1767369005835,9.36103135,129.31,129.27,17.09662674]
[1767369006037,9.36103135,129.31,129.27,17.75568235]
[1767369006240,8.35013837,129.4,129.29,9.36103135]
[1767369006452,9.36103135,129.34,129.29,9.36103135]
[1767369006655,9.36103135,129.34,129.3,9.36103135]
[1767369006857,7.72823645,129.4,129.34,0.65905561]
[1767369007154,9.36103135,129.37,129.32,10.02008696]
[1767369007330,9.36103135,129.37,129.33,9.36103135]
[1767369007536,9.36103135,129.38,129.34,10.02008696]
[1767369007731,0.69485641,129.38,129.34,0.65905561]
[1767369008051,0.69485641,129.38,129.31,19.33213161]
[1767369008052,9.36103135,129.36,129.32,17.75257935]
[1767369008258,0.69485641,129.35,129.31,7.73307201]
[1767369008553,10.05588776,129.35,129.31,7.73330907]
[1767369008748,10.05588776,129.34,129.3,24.14008696]
[1767369008951,0.69485641,129.34,129.31,9.36103135]
[1767369009250,10.05588776,129.32,129.28,0.65905561]
[1767369009439,10.05588776,129.32,129.28,8.39386439]
[1767369009951,0.69485641,129.32,129.28,8.39386439]
[1767369010147,10.05588776,129.32,129.28,7.73480878]
[1767369010651,0.69485641,129.32,129.28,17.09584013]
[1767369010958,10.05588776,129.32,129.28,7.73480878]
[1767369011153,9.36103135,129.33,129.28,17.75489574]
[1767369011359,10.05588776,129.33,129.28,17.75489574]
[1767369012253,0.69485641,129.32,129.28,17.75489574]
[1767369012583,10.05588776,129.32,129.28,17.75489574]
[1767369012854,14.1,129.36,129.29,9.36103135]
[1767369012855,9.36103135,129.33,129.29,9.36103135]
[1767369013033,10.05588776,129.34,129.3,10.02008696]
[1767369013236,19.322385,129.39,129.31,9.36103135]
[1767369013237,9.36103135,129.35,129.31,9.36103135]
[1767369013437,9.36103135,129.35,129.31,10.02008696]
[1767369013655,0.69485641,129.35,129.31,0.65905561]
[1767369013837,10.05588776,129.35,129.31,0.65905561]
[1767369014144,9.36103135,129.34,129.31,7.73333292]
[1767369014337,10.05588776,129.35,129.31,17.09436427]
[1767369014532,10.05588776,129.37,129.32,10.02008696]
[1767369014949,10.05588776,129.37,129.32,0.65905561]
[1767369015134,10.05588776,129.36,129.32,0.65905561]
[1767369016066,10.05588776,129.36,129.33,7.73215804]
[1767369016355,10.05588776,129.36,129.32,10.02008696]
[1767369016867,9.36103135,129.37,129.33,0.65905561]
[1767369017156,10.05588776,129.38,129.34,0.65905561]
[1767369017346,0.69485641,129.38,129.34,0.65905561]
[1767369017654,10.05588776,129.38,129.34,0.65905561]